[Event "*** Titled Tuesday Blitz"]
[Site "Chess.com"]
[Date "2021.02.02"]
[Round "4"]
[White "albi1999"]
[Black "anon132639"]
[Result "0-1"]
[WhiteElo "2620"]
[BlackElo "2808"]
[TimeControl "180+1"]
[EndTime "10:42:38 PST"]
[Termination "anon132639 won by resignation"]

1. d4 {[%clk 0:02:57.7]} 1... Nf6 {[%clk 0:02:59.6]} 2. c4 {[%clk 0:02:57]} 2...
b6 {[%clk 0:02:59.3]} 3. Nf3 {[%clk 0:02:54.7]} 3... Bb7 {[%clk 0:02:59.2]} 4.
g3 {[%clk 0:02:55.3]} 4... g6 {[%clk 0:02:47.8]} 5. Bg2 {[%clk 0:02:55.3]} 5...
Bg7 {[%clk 0:02:48.2]} 6. O-O {[%clk 0:02:56.2]} 6... O-O {[%clk 0:02:47.9]} 7.
Qc2 {[%clk 0:02:55.8]} 7... d6 {[%clk 0:02:34.8]} 8. Nc3 {[%clk 0:02:55.4]} 8...
Nbd7 {[%clk 0:02:34.9]} 9. Rd1 {[%clk 0:02:55.1]} 9... Qe8 {[%clk 0:02:25.2]}
10. e4 {[%clk 0:02:54.3]} 10... e5 {[%clk 0:02:23.9]} 11. h3 {[%clk 0:02:44.2]}
11... c6 {[%clk 0:02:05.6]} 12. Be3 {[%clk 0:02:24.9]} 12... Qe7 {[%clk
0:02:05.5]} 13. Re1 {[%clk 0:02:21.3]} 13... a6 {[%clk 0:01:59.1]} 14. a4 {[%clk
0:02:15.1]} 14... a5 {[%clk 0:01:54.3]} 15. Rad1 {[%clk 0:02:14.4]} 15... Rad8
{[%clk 0:01:48.4]} 16. b3 {[%clk 0:02:13.3]} 16... exd4 {[%clk 0:01:48.4]} 17.
Nxd4 {[%clk 0:02:03]} 17... Nc5 {[%clk 0:01:48.6]} 18. f4 {[%clk 0:02:00.1]}
18... Nfd7 {[%clk 0:01:46.6]} 19. Bf2 {[%clk 0:01:58.2]} 19... Rfe8 {[%clk
0:01:42.8]} 20. Rd2 {[%clk 0:01:52.7]} 20... Na6 {[%clk 0:01:40.3]} 21. Qd1
{[%clk 0:01:49.1]} 21... Ndc5 {[%clk 0:01:38.9]} 22. Ree2 {[%clk 0:01:33.1]}
22... Nb4 {[%clk 0:01:38.6]} 23. Na2 {[%clk 0:01:22.4]} 23... Nxa2 {[%clk
0:01:36.4]} 24. Rxa2 {[%clk 0:01:23.3]} 24... h5 {[%clk 0:01:34.8]} 25. Rad2
{[%clk 0:01:20]} 25... h4 {[%clk 0:01:35.1]} 26. g4 {[%clk 0:01:17.1]} 26... Qf6
{[%clk 0:01:35.5]} 27. Qe1 {[%clk 0:00:45.5]} 27... Qxf4 {[%clk 0:01:27]} 28.
Bxh4 {[%clk 0:00:45.6]} 28... Rd7 {[%clk 0:01:06.4]} 29. Bg3 {[%clk 0:00:42.1]}
29... Qg5 {[%clk 0:01:06]} 30. Nf3 {[%clk 0:00:40.9]} 30... Qd8 {[%clk
0:00:53.5]} 31. e5 {[%clk 0:00:34.8]} 31... dxe5 {[%clk 0:00:52.2]} 32. Rxd7
{[%clk 0:00:34]} 32... Nxd7 {[%clk 0:00:49.8]} 33. Bh4 {[%clk 0:00:26.9]} 33...
Qc7 {[%clk 0:00:48.8]} 34. Ng5 {[%clk 0:00:24.3]} 34... c5 {[%clk 0:00:37.6]}
35. Qf1 {[%clk 0:00:23]} 35... Nf6 {[%clk 0:00:36.4]} 36. Bxb7 {[%clk
0:00:20.9]} 36... Qxb7 {[%clk 0:00:37.3]} 37. Rf2 {[%clk 0:00:18.4]} 37... Qc6
{[%clk 0:00:15.7]} 38. Nxf7 {[%clk 0:00:17.9]} 38... Kxf7 {[%clk 0:00:16.1]} 39.
Bxf6 {[%clk 0:00:16.2]} 39... Bxf6 {[%clk 0:00:12.6]} 40. g5 {[%clk 0:00:16.5]}
40... Re6 {[%clk 0:00:12.8]} 41. gxf6 {[%clk 0:00:15.5]} 41... Rxf6 {[%clk
0:00:13.7]} 42. Rxf6+ {[%clk 0:00:15.4]} 42... Qxf6 {[%clk 0:00:14.6]} 43. Qg2
{[%clk 0:00:16.3]} 43... Qd6 {[%clk 0:00:12.3]} 44. Qb7+ {[%clk 0:00:14.7]}
44... Kf6 {[%clk 0:00:12.6]} 45. Qf3+ {[%clk 0:00:14.5]} 45... Kg7 {[%clk
0:00:11.8]} 46. Qb7+ {[%clk 0:00:14.4]} 46... Kh6 {[%clk 0:00:12.2]} 47. Qf3
{[%clk 0:00:13.8]} 47... Qd4+ {[%clk 0:00:12]} 48. Kg2 {[%clk 0:00:14.2]} 48...
Qd2+ {[%clk 0:00:12.3]} 49. Kg3 {[%clk 0:00:14.1]} 49... Qg5+ {[%clk 0:00:12.5]}
50. Kf2 {[%clk 0:00:14.1]} 50... Qf4 {[%clk 0:00:12.7]} 51. Ke2 {[%clk
0:00:08.9]} 51... Qxf3+ {[%clk 0:00:11.2]} 52. Kxf3 {[%clk 0:00:09.8]} 52... Kg5
{[%clk 0:00:11.9]} 53. Ke4 {[%clk 0:00:10.7]} 53... Kf6 {[%clk 0:00:12.6]} 54.
h4 {[%clk 0:00:10.7]} 54... Ke6 {[%clk 0:00:12.4]} 0-1

[Event "*** Titled Tuesday Blitz"]
[Site "Chess.com"]
[Date "2021.02.02"]
[Round "4"]
[White "CM_rui"]
[Black "Nozdrachev_Leonid"]
[Result "1-0"]
[WhiteElo "2357"]
[BlackElo "2523"]
[TimeControl "180+1"]
[EndTime "10:42:38 PST"]
[Termination "CM_rui won on time"]

1. e4 {[%clk 0:03:00.9]} 1... d6 {[%clk 0:02:58.6]} 2. d4 {[%clk 0:03:00.4]}
2... Nf6 {[%clk 0:02:58.2]} 3. Nc3 {[%clk 0:02:59.2]} 3... e5 {[%clk 0:02:58]}
4. Nf3 {[%clk 0:02:56.8]} 4... Nbd7 {[%clk 0:02:57.5]} 5. Be2 {[%clk 0:02:50.5]}
5... Be7 {[%clk 0:02:56.4]} 6. O-O {[%clk 0:02:50.1]} 6... O-O {[%clk
0:02:56.2]} 7. h3 {[%clk 0:02:49.9]} 7... c6 {[%clk 0:02:54.2]} 8. Be3 {[%clk
0:02:49.3]} 8... b5 {[%clk 0:02:53.9]} 9. a3 {[%clk 0:02:49.1]} 9... a5 {[%clk
0:02:50.2]} 10. d5 {[%clk 0:02:34]} 10... cxd5 {[%clk 0:02:44]} 11. Nxd5 {[%clk
0:02:12.8]} 11... Nxe4 {[%clk 0:02:40]} 12. Nxe7+ {[%clk 0:02:09.1]} 12... Qxe7
{[%clk 0:02:40.9]} 13. Qd5 {[%clk 0:02:09.3]} 13... Rb8 {[%clk 0:01:24.2]} 14.
Qxe4 {[%clk 0:02:08.9]} 14... Bb7 {[%clk 0:01:23.8]} 15. Qf5 {[%clk 0:01:52.9]}
15... g6 {[%clk 0:01:20]} 16. Qg5 {[%clk 0:01:46.9]} 16... Qxg5 {[%clk
0:01:15.5]} 17. Bxg5 {[%clk 0:01:41.9]} 17... Rfc8 {[%clk 0:01:07.6]} 18. c3
{[%clk 0:01:30.5]} 18... f6 {[%clk 0:01:05.8]} 19. Be3 {[%clk 0:01:25.3]} 19...
Bc6 {[%clk 0:00:53]} 20. Rfd1 {[%clk 0:01:21.5]} 20... d5 {[%clk 0:00:52.7]} 21.
Nh2 {[%clk 0:01:05.7]} 21... Kf7 {[%clk 0:00:49.9]} 22. f4 {[%clk 0:00:58.5]}
22... b4 {[%clk 0:00:36.2]} 23. axb4 {[%clk 0:00:50.4]} 23... axb4 {[%clk
0:00:35.9]} 24. Ra7 {[%clk 0:00:45.4]} 24... bxc3 {[%clk 0:00:30.2]} 25. bxc3
{[%clk 0:00:46.3]} 25... Rb2 {[%clk 0:00:28.5]} 26. Ba6 {[%clk 0:00:39.3]} 26...
Ra8 {[%clk 0:00:23.9]} 27. Rxa8 {[%clk 0:00:23.1]} 27... Bxa8 {[%clk 0:00:24.8]}
28. Nf3 {[%clk 0:00:15.4]} 28... Rc2 {[%clk 0:00:20.4]} 29. Rc1 {[%clk
0:00:08.2]} 29... Ra2 {[%clk 0:00:19.6]} 30. Bb5 {[%clk 0:00:07.5]} 30... exf4
{[%clk 0:00:10.3]} 31. Bxf4 {[%clk 0:00:05.4]} 31... Nc5 {[%clk 0:00:10.5]} 32.
Nd4 {[%clk 0:00:05.2]} 32... Ne4 {[%clk 0:00:09]} 33. Be3 {[%clk 0:00:02.8]}
33... g5 {[%clk 0:00:08.3]} 34. Bc6 {[%clk 0:00:03.3]} 34... Bxc6 {[%clk
0:00:07.2]} 35. Nxc6 {[%clk 0:00:04.2]} 35... Ke6 {[%clk 0:00:06.7]} 36. Nd4+
{[%clk 0:00:04.7]} 36... Ke5 {[%clk 0:00:06.5]} 37. Rf1 {[%clk 0:00:05]} 37...
Nxc3 {[%clk 0:00:02.7]} 38. Rf5+ {[%clk 0:00:05.1]} 38... Kd6 {[%clk 0:00:02.7]}
39. Rxf6+ {[%clk 0:00:05.2]} 39... Ke7 {[%clk 0:00:03.1]} 40. Bxg5 {[%clk
0:00:04.8]} 40... Ra1+ {[%clk 0:00:01.3]} 41. Kh2 {[%clk 0:00:04.9]} 41... Kd7
{[%clk 0:00:01.6]} 42. Rf7+ {[%clk 0:00:04.8]} 42... Kd6 {[%clk 0:00:01.8]} 43.
Bf4+ {[%clk 0:00:05.2]} 43... Kc5 {[%clk 0:00:01.7]} 44. Nb3+ {[%clk 0:00:05.8]}
44... Kc4 {[%clk 0:00:01.8]} 45. Nxa1 {[%clk 0:00:06.7]} 45... d4 {[%clk
0:00:01]} 46. Nc2 {[%clk 0:00:05.8]} 46... Kd3 {[%clk 0:00:01.9]} 47. Nxd4
{[%clk 0:00:06.1]} 47... Kxd4 {[%clk 0:00:02.2]} 48. Rxh7 {[%clk 0:00:06.8]}
48... Ne4 {[%clk 0:00:02.2]} 49. Rd7+ {[%clk 0:00:06.3]} 49... Kc5 {[%clk
0:00:02.3]} 50. g4 {[%clk 0:00:06.6]} 50... Nf6 {[%clk 0:00:01.7]} 51. Rc7+
{[%clk 0:00:06.4]} 51... Kd5 {[%clk 0:00:01.6]} 52. g5 {[%clk 0:00:07.3]} 52...
Nh5 {[%clk 0:00:01.1]} 53. g6 {[%clk 0:00:07.5]} 1-0

[Event "*** Titled Tuesday Blitz"]
[Site "Chess.com"]
[Date "2021.02.02"]
[Round "4"]
[White "GiorgianBarbosa"]
[Black "lucachess49"]
[Result "1-0"]
[WhiteElo "2494"]
[BlackElo "2321"]
[TimeControl "180+1"]
[EndTime "10:42:38 PST"]
[Termination "GiorgianBarbosa won on time"]

1. d4 {[%clk 0:02:59.5]} 1... Nf6 {[%clk 0:02:59.8]} 2. c4 {[%clk 0:02:59.8]}
2... e6 {[%clk 0:02:59.1]} 3. Nc3 {[%clk 0:03:00.3]} 3... Bb4 {[%clk 0:02:57]}
4. e3 {[%clk 0:03:00.5]} 4... O-O {[%clk 0:02:55.9]} 5. Ne2 {[%clk 0:03:01]}
5... Re8 {[%clk 0:02:54.8]} 6. a3 {[%clk 0:03:01.5]} 6... Bf8 {[%clk 0:02:54.9]}
7. Nf4 {[%clk 0:03:00.7]} 7... d6 {[%clk 0:02:50.1]} 8. Be2 {[%clk 0:02:56.8]}
8... e5 {[%clk 0:02:45.3]} 9. dxe5 {[%clk 0:02:55.5]} 9... dxe5 {[%clk
0:02:46.2]} 10. Qxd8 {[%clk 0:02:49.7]} 10... Rxd8 {[%clk 0:02:46.1]} 11. Nfd5
{[%clk 0:02:50.5]} 11... Nxd5 {[%clk 0:02:45.5]} 12. Nxd5 {[%clk 0:02:51.4]}
12... Na6 {[%clk 0:02:45.6]} 13. b4 {[%clk 0:02:43.3]} 13... c6 {[%clk
0:02:45.4]} 14. Nc3 {[%clk 0:02:43.2]} 14... Bf5 {[%clk 0:02:35]} 15. e4 {[%clk
0:02:39.9]} 15... Be6 {[%clk 0:02:34.8]} 16. Bb2 {[%clk 0:02:21.2]} 16... Rd4
{[%clk 0:02:28.4]} 17. c5 {[%clk 0:01:59.6]} 17... Rad8 {[%clk 0:02:24.9]} 18.
Rd1 {[%clk 0:01:50.5]} 18... Bb3 {[%clk 0:02:23.2]} 19. Rxd4 {[%clk 0:01:46.9]}
19... exd4 {[%clk 0:02:23.1]} 20. Nb1 {[%clk 0:01:45.4]} 20... d3 {[%clk
0:02:20.8]} 21. Bf3 {[%clk 0:01:41.6]} 21... b6 {[%clk 0:01:53.7]} 22. Nd2
{[%clk 0:01:37.2]} 22... Ba2 {[%clk 0:01:49.7]} 23. cxb6 {[%clk 0:01:35.4]}
23... axb6 {[%clk 0:01:49.2]} 24. O-O {[%clk 0:01:28.3]} 24... c5 {[%clk
0:01:45.9]} 25. b5 {[%clk 0:01:28.4]} 25... Nc7 {[%clk 0:01:45.2]} 26. a4 {[%clk
0:01:26.5]} 26... Ne6 {[%clk 0:01:40.4]} 27. Ra1 {[%clk 0:01:21.7]} 27... c4
{[%clk 0:01:13.6]} 28. Rxa2 {[%clk 0:01:19.5]} 28... c3 {[%clk 0:01:13.1]} 29.
Bxc3 {[%clk 0:01:14.3]} 29... Rc8 {[%clk 0:01:13.7]} 30. Nb1 {[%clk 0:01:13.4]}
30... Bb4 {[%clk 0:01:05.7]} 31. Bd2 {[%clk 0:00:41.2]} 31... Rc2 {[%clk
0:01:03.8]} 32. Ra1 {[%clk 0:00:30.7]} 32... Bxd2 {[%clk 0:00:37]} 33. Nxd2
{[%clk 0:00:31.6]} 33... Rxd2 {[%clk 0:00:37.9]} 34. Rd1 {[%clk 0:00:15.4]}
34... Rxd1+ {[%clk 0:00:29.8]} 35. Bxd1 {[%clk 0:00:14.7]} 35... Nc5 {[%clk
0:00:30.5]} 36. f3 {[%clk 0:00:14.3]} 36... Kf8 {[%clk 0:00:20.3]} 37. Kf2
{[%clk 0:00:14.8]} 37... Ke7 {[%clk 0:00:20.8]} 38. Ke3 {[%clk 0:00:15.4]} 38...
Kd6 {[%clk 0:00:20.9]} 39. Kd4 {[%clk 0:00:16]} 39... f6 {[%clk 0:00:19.9]} 40.
f4 {[%clk 0:00:14.9]} 40... g5 {[%clk 0:00:19.2]} 41. e5+ {[%clk 0:00:12.3]}
41... Ke7 {[%clk 0:00:18.6]} 42. exf6+ {[%clk 0:00:11.4]} 42... Kxf6 {[%clk
0:00:18.6]} 43. fxg5+ {[%clk 0:00:12.3]} 43... Kxg5 {[%clk 0:00:19.5]} 44. a5
{[%clk 0:00:12.7]} 44... Ne6+ {[%clk 0:00:17.6]} 45. Ke5 {[%clk 0:00:11.1]}
45... Nf8 {[%clk 0:00:04.5]} 46. a6 {[%clk 0:00:10]} 46... Nd7+ {[%clk
0:00:04.5]} 47. Kd6 {[%clk 0:00:10.4]} 47... Nc5 {[%clk 0:00:04.3]} 48. a7
{[%clk 0:00:08.9]} 48... Ne4+ {[%clk 0:00:04.7]} 49. Ke5 {[%clk 0:00:08.3]}
49... Nc3 {[%clk 0:00:03.9]} 50. Bf3 {[%clk 0:00:08.6]} 50... d2 {[%clk
0:00:01.8]} 51. a8=Q {[%clk 0:00:08.3]} 1-0

[Event "*** Titled Tuesday Blitz"]
[Site "Chess.com"]
[Date "2021.02.02"]
[Round "4"]
[White "JTCoach"]
[Black "Grimlock_Glasgow"]
[Result "1-0"]
[WhiteElo "2690"]
[BlackElo "2490"]
[TimeControl "180+1"]
[EndTime "10:42:39 PST"]
[Termination "JTCoach won on time"]

1. d4 {[%clk 0:03:00.9]} 1... e6 {[%clk 0:03:00]} 2. Nf3 {[%clk 0:02:59.9]} 2...
f5 {[%clk 0:03:00.2]} 3. g3 {[%clk 0:02:59.9]} 3... Nf6 {[%clk 0:03:00.6]} 4.
Bg2 {[%clk 0:03:00.4]} 4... d5 {[%clk 0:03:01.2]} 5. O-O {[%clk 0:03:00.5]} 5...
Be7 {[%clk 0:03:02.1]} 6. b3 {[%clk 0:02:59.7]} 6... Ne4 {[%clk 0:03:01.5]} 7.
c4 {[%clk 0:02:58]} 7... Nc6 {[%clk 0:03:00.8]} 8. Ba3 {[%clk 0:02:52.7]} 8...
Bf6 {[%clk 0:03:00.1]} 9. e3 {[%clk 0:02:48.5]} 9... h5 {[%clk 0:03:00.5]} 10.
h4 {[%clk 0:02:43.6]} 10... g5 {[%clk 0:02:59.4]} 11. hxg5 {[%clk 0:02:43.2]}
11... Bxg5 {[%clk 0:02:59.9]} 12. Nxg5 {[%clk 0:02:10.8]} 12... Qxg5 {[%clk
0:03:00.8]} 13. Nd2 {[%clk 0:02:09.9]} 13... h4 {[%clk 0:02:57.1]} 14. Nf3
{[%clk 0:02:05.4]} 14... Qg7 {[%clk 0:02:56.1]} 15. Nxh4 {[%clk 0:02:00.4]}
15... Bd7 {[%clk 0:02:55.6]} 16. b4 {[%clk 0:01:39]} 16... O-O-O {[%clk
0:02:17.5]} 17. b5 {[%clk 0:01:37]} 17... Na5 {[%clk 0:02:16.9]} 18. cxd5 {[%clk
0:01:32.9]} 18... exd5 {[%clk 0:02:12.4]} 19. Qf3 {[%clk 0:01:14.6]} 19... Rxh4
{[%clk 0:01:53.4]} 20. gxh4 {[%clk 0:01:11.6]} 20... Nc4 {[%clk 0:01:53.8]} 21.
Bb4 {[%clk 0:00:59.4]} 21... Rg8 {[%clk 0:01:36.2]} 22. Rfc1 {[%clk 0:00:48.8]}
22... Bxb5 {[%clk 0:00:42.9]} 23. Rab1 {[%clk 0:00:34.5]} 23... Ncd2 {[%clk
0:00:22.5]} 24. Bxd2 {[%clk 0:00:32.1]} 24... Nxd2 {[%clk 0:00:23.4]} 25. Qg3
{[%clk 0:00:25.6]} 25... Qxg3 {[%clk 0:00:16.5]} 26. fxg3 {[%clk 0:00:26.5]}
26... Nxb1 {[%clk 0:00:16.8]} 27. Rxb1 {[%clk 0:00:27.1]} 27... Bd3 {[%clk
0:00:16.5]} 28. Rd1 {[%clk 0:00:19.8]} 28... Be4 {[%clk 0:00:14.5]} 29. Kf2
{[%clk 0:00:19.9]} 29... Bxg2 {[%clk 0:00:13.2]} 30. Kxg2 {[%clk 0:00:20.1]}
30... Kd7 {[%clk 0:00:13.9]} 31. Kf3 {[%clk 0:00:20.6]} 31... b6 {[%clk
0:00:12.5]} 32. h5 {[%clk 0:00:20.6]} 32... Ke6 {[%clk 0:00:12.5]} 33. Rc1
{[%clk 0:00:19.6]} 33... Rc8 {[%clk 0:00:11.6]} 34. h6 {[%clk 0:00:19.1]} 34...
c5 {[%clk 0:00:10.8]} 35. h7 {[%clk 0:00:15.7]} 35... c4 {[%clk 0:00:10]} 36.
Rh1 {[%clk 0:00:14.5]} 36... Rh8 {[%clk 0:00:09.9]} 37. Kf4 {[%clk 0:00:13.4]}
37... Kf6 {[%clk 0:00:10]} 38. Rh6+ {[%clk 0:00:12.6]} 38... Kg7 {[%clk
0:00:10]} 39. Rd6 {[%clk 0:00:11.5]} 39... Rxh7 {[%clk 0:00:08.3]} 40. Rxd5
{[%clk 0:00:11.3]} 40... Kg6 {[%clk 0:00:08.1]} 41. Rd6+ {[%clk 0:00:11.4]}
41... Kf7 {[%clk 0:00:07]} 42. Kxf5 {[%clk 0:00:10]} 42... Rh5+ {[%clk
0:00:05.9]} 43. Ke4 {[%clk 0:00:05.8]} 43... Ke7 {[%clk 0:00:04.5]} 44. Rc6
{[%clk 0:00:05.8]} 44... b5 {[%clk 0:00:04.6]} 45. d5 {[%clk 0:00:06.1]} 45...
Kd7 {[%clk 0:00:03.9]} 46. Kd4 {[%clk 0:00:06]} 46... Rh1 {[%clk 0:00:02.5]} 47.
e4 {[%clk 0:00:06.1]} 47... Rd1+ {[%clk 0:00:02.3]} 48. Ke5 {[%clk 0:00:06.5]}
1-0

[Event "*** Titled Tuesday Blitz"]
[Site "Chess.com"]
[Date "2021.02.02"]
[Round "4"]
[White "OhanyanEminChess"]
[Black "Katheksis"]
[Result "1/2-1/2"]
[WhiteElo "2646"]
[BlackElo "2499"]
[TimeControl "180+1"]
[EndTime "10:42:40 PST"]
[Termination "Game drawn - insufficient material"]

1. e4 {[%clk 0:02:55.2]} 1... c5 {[%clk 0:02:59.3]} 2. Nf3 {[%clk 0:02:54.7]}
2... g6 {[%clk 0:02:59.1]} 3. d4 {[%clk 0:02:52.5]} 3... cxd4 {[%clk 0:03:00]}
4. Nxd4 {[%clk 0:02:53.3]} 4... Nc6 {[%clk 0:02:58.9]} 5. Nc3 {[%clk 0:02:52]}
5... Bg7 {[%clk 0:02:57.8]} 6. Be3 {[%clk 0:02:49]} 6... Nf6 {[%clk 0:02:57.9]}
7. Nxc6 {[%clk 0:02:48.1]} 7... bxc6 {[%clk 0:02:58.8]} 8. e5 {[%clk 0:02:47.8]}
8... Ng8 {[%clk 0:02:59.4]} 9. Bd4 {[%clk 0:02:48.1]} 9... Qa5 {[%clk
0:02:44.7]} 10. Bc4 {[%clk 0:02:46.6]} 10... Bxe5 {[%clk 0:02:29.5]} 11. O-O
{[%clk 0:02:46.1]} 11... Nf6 {[%clk 0:01:54.8]} 12. Re1 {[%clk 0:02:43.2]} 12...
d6 {[%clk 0:01:49.2]} 13. Bxe5 {[%clk 0:02:40.9]} 13... dxe5 {[%clk 0:01:50.1]}
14. Qe2 {[%clk 0:02:41]} 14... O-O {[%clk 0:01:31.5]} 15. Qxe5 {[%clk
0:02:37.1]} 15... Qxe5 {[%clk 0:01:32.4]} 16. Rxe5 {[%clk 0:02:38]} 16... e6
{[%clk 0:01:33.1]} 17. Bb3 {[%clk 0:02:30.7]} 17... Rd8 {[%clk 0:01:29.1]} 18.
Rd1 {[%clk 0:02:26.3]} 18... Rxd1+ {[%clk 0:01:28.4]} 19. Nxd1 {[%clk
0:02:27.2]} 19... Kf8 {[%clk 0:01:28.9]} 20. Ra5 {[%clk 0:02:24.5]} 20... Ke7
{[%clk 0:01:24.8]} 21. Ne3 {[%clk 0:02:17.5]} 21... Nd5 {[%clk 0:01:14.3]} 22.
c4 {[%clk 0:02:16.2]} 22... Nxe3 {[%clk 0:01:03.7]} 23. fxe3 {[%clk 0:02:17.1]}
23... Kd6 {[%clk 0:00:59.6]} 24. c5+ {[%clk 0:02:16.4]} 24... Kc7 {[%clk
0:01:00.2]} 25. Ra4 {[%clk 0:02:16.4]} 25... a5 {[%clk 0:00:58.7]} 26. Rh4
{[%clk 0:02:14]} 26... h5 {[%clk 0:00:58.6]} 27. g4 {[%clk 0:02:14.1]} 27...
hxg4 {[%clk 0:00:58.5]} 28. Rh7 {[%clk 0:02:14.7]} 28... a4 {[%clk 0:00:37]} 29.
Rxf7+ {[%clk 0:02:13.9]} 29... Kb8 {[%clk 0:00:37.6]} 30. Bd1 {[%clk 0:02:07.3]}
30... Ra5 {[%clk 0:00:36.8]} 31. Rf4 {[%clk 0:01:56.2]} 31... Rxc5 {[%clk
0:00:34.8]} 32. Bxa4 {[%clk 0:01:56.7]} 32... e5 {[%clk 0:00:33.1]} 33. Rb4+
{[%clk 0:01:55.5]} 33... Kc7 {[%clk 0:00:28.6]} 34. Kf2 {[%clk 0:01:55.8]} 34...
Bf5 {[%clk 0:00:28.9]} 35. Bb3 {[%clk 0:01:51]} 35... Rc1 {[%clk 0:00:28.8]} 36.
Rc4 {[%clk 0:01:50]} 36... Rb1 {[%clk 0:00:27.6]} 37. Kg3 {[%clk 0:01:42]} 37...
Rxb2 {[%clk 0:00:27.7]} 38. e4 {[%clk 0:01:36.4]} 38... Be6 {[%clk 0:00:27.5]}
39. Rc3 {[%clk 0:01:34.2]} 39... Bxb3 {[%clk 0:00:26.2]} 40. axb3 {[%clk
0:01:35.1]} 40... Kd6 {[%clk 0:00:26.8]} 41. Rd3+ {[%clk 0:01:32.1]} 41... Kc5
{[%clk 0:00:26]} 42. Kxg4 {[%clk 0:01:30.7]} 42... Rxh2 {[%clk 0:00:25.6]} 43.
Kg5 {[%clk 0:01:31.4]} 43... Re2 {[%clk 0:00:23.6]} 44. Kxg6 {[%clk 0:01:31.6]}
44... Rxe4 {[%clk 0:00:23.9]} 45. Kf5 {[%clk 0:01:31.8]} 45... Re1 {[%clk
0:00:23.9]} 46. Ke6 {[%clk 0:01:30.1]} 46... e4 {[%clk 0:00:23.4]} 47. Rc3+
{[%clk 0:01:30.7]} 47... Kb5 {[%clk 0:00:24]} 48. Ke5 {[%clk 0:01:30.5]} 48...
c5 {[%clk 0:00:20.9]} 49. Rc4 {[%clk 0:01:27]} 49... e3 {[%clk 0:00:20.7]} 50.
Ke4 {[%clk 0:01:26.7]} 50... Rb1 {[%clk 0:00:19.8]} 51. Rc2 {[%clk 0:01:25.2]}
51... Rxb3 {[%clk 0:00:19.4]} 52. Kd5 {[%clk 0:01:25.7]} 52... Rd3+ {[%clk
0:00:17.1]} 53. Ke4 {[%clk 0:01:26.3]} 53... c4 {[%clk 0:00:17.7]} 54. Rc1
{[%clk 0:01:26]} 54... Rb3 {[%clk 0:00:18.2]} 55. Kd4 {[%clk 0:01:25.5]} 55...
Kb4 {[%clk 0:00:18.7]} 56. Rxc4+ {[%clk 0:01:25.5]} 56... Ka3 {[%clk 0:00:19.3]}
57. Rc2 {[%clk 0:01:24.4]} 57... Rb2 {[%clk 0:00:15.8]} 58. Rc3+ {[%clk
0:01:11.4]} 58... Rb3 {[%clk 0:00:15.4]} 59. Rc8 {[%clk 0:01:06.5]} 59... e2
{[%clk 0:00:15.3]} 60. Re8 {[%clk 0:01:07.1]} 60... Rb2 {[%clk 0:00:15]} 61. Kc3
{[%clk 0:01:07.6]} 61... Ka2 {[%clk 0:00:14.9]} 62. Kd3 {[%clk 0:00:58.9]} 62...
Kb1 {[%clk 0:00:15.2]} 63. Rxe2 {[%clk 0:00:55.1]} 63... Rxe2 {[%clk 0:00:16.1]}
64. Kxe2 {[%clk 0:00:26.2]} 1/2-1/2

[Event "*** Titled Tuesday Blitz"]
[Site "Chess.com"]
[Date "2021.02.02"]
[Round "4"]
[White "anon219"]
[Black "Rsnr"]
[Result "0-1"]
[WhiteElo "2898"]
[BlackElo "2778"]
[TimeControl "180+1"]
[EndTime "10:42:45 PST"]
[Termination "Rsnr won on time"]

1. e4 {[%clk 0:03:00.9]} 1... c6 {[%clk 0:03:00.1]} 2. Nf3 {[%clk 0:03:00.6]}
2... d5 {[%clk 0:03:01]} 3. d3 {[%clk 0:03:01.2]} 3... g6 {[%clk 0:03:00.3]} 4.
e5 {[%clk 0:03:00.6]} 4... f6 {[%clk 0:03:00.7]} 5. d4 {[%clk 0:02:59.9]} 5...
fxe5 {[%clk 0:03:00.8]} 6. Nxe5 {[%clk 0:03:00]} 6... Bg7 {[%clk 0:03:01.3]} 7.
Bd3 {[%clk 0:03:00.1]} 7... Nd7 {[%clk 0:02:55.7]} 8. Qe2 {[%clk 0:02:54.9]}
8... Nxe5 {[%clk 0:02:48]} 9. dxe5 {[%clk 0:02:55.8]} 9... Nh6 {[%clk
0:02:48.7]} 10. O-O {[%clk 0:02:47.8]} 10... O-O {[%clk 0:02:48.7]} 11. Nd2
{[%clk 0:02:40]} 11... Bf5 {[%clk 0:02:32.1]} 12. f4 {[%clk 0:02:37.3]} 12...
Qb6+ {[%clk 0:02:19.5]} 13. Kh1 {[%clk 0:02:36.3]} 13... Bxd3 {[%clk 0:02:20.1]}
14. Qxd3 {[%clk 0:02:35.1]} 14... Ng4 {[%clk 0:02:01.7]} 15. Nf3 {[%clk
0:01:58.4]} 15... Rad8 {[%clk 0:01:12.2]} 16. h3 {[%clk 0:01:55.3]} 16... Nf2+
{[%clk 0:01:07.2]} 17. Rxf2 {[%clk 0:01:41.1]} 17... Qxf2 {[%clk 0:01:08.1]} 18.
Be3 {[%clk 0:01:06.7]} 18... Qg3 {[%clk 0:01:08.3]} 19. Qb3 {[%clk 0:01:05.9]}
19... Bh6 {[%clk 0:00:42.9]} 20. Qxb7 {[%clk 0:00:59.8]} 20... Bxf4 {[%clk
0:00:43.2]} 21. Bxf4 {[%clk 0:00:58.3]} 21... Rxf4 {[%clk 0:00:40]} 22. Rf1
{[%clk 0:00:18]} 22... Rdf8 {[%clk 0:00:14.3]} 23. Qxc6 {[%clk 0:00:17.6]} 23...
Rxf3 {[%clk 0:00:04.3]} 24. Rxf3 {[%clk 0:00:18.5]} 24... Qe1+ {[%clk
0:00:03.3]} 25. Kh2 {[%clk 0:00:16.4]} 25... Qxe5+ {[%clk 0:00:03.9]} 26. Rg3
{[%clk 0:00:15.1]} 26... e6 {[%clk 0:00:02.7]} 27. Qc3 {[%clk 0:00:13.3]} 27...
Qxc3 {[%clk 0:00:01.9]} 28. Rxc3 {[%clk 0:00:10]} 28... Rf7 {[%clk 0:00:02.6]}
29. Rc6 {[%clk 0:00:09.4]} 29... Re7 {[%clk 0:00:03.1]} 30. Rd6 {[%clk
0:00:09.4]} 30... Kf7 {[%clk 0:00:04]} 31. a4 {[%clk 0:00:08.6]} 31... Kf6
{[%clk 0:00:04.6]} 32. Kg3 {[%clk 0:00:08.3]} 32... Ke5 {[%clk 0:00:05.2]} 33.
Rd8 {[%clk 0:00:08.6]} 33... Rc7 {[%clk 0:00:05.5]} 34. c3 {[%clk 0:00:08.6]}
34... Ke4 {[%clk 0:00:06.1]} 35. Rd6 {[%clk 0:00:08.2]} 35... e5 {[%clk
0:00:06.2]} 36. a5 {[%clk 0:00:07.3]} 36... d4 {[%clk 0:00:06.2]} 37. cxd4
{[%clk 0:00:07.8]} 37... exd4 {[%clk 0:00:07.1]} 38. b4 {[%clk 0:00:08.4]} 38...
d3 {[%clk 0:00:06.6]} 39. b5 {[%clk 0:00:08.7]} 39... Rc5 {[%clk 0:00:07]} 40.
b6 {[%clk 0:00:08.4]} 40... axb6 {[%clk 0:00:07.9]} 41. axb6 {[%clk 0:00:08.6]}
41... Rb5 {[%clk 0:00:08.6]} 42. Kf2 {[%clk 0:00:07.8]} 42... Rb2+ {[%clk
0:00:08.9]} 43. Kf1 {[%clk 0:00:07.6]} 43... Ke3 {[%clk 0:00:09]} 44. Re6+
{[%clk 0:00:03.8]} 44... Kd2 {[%clk 0:00:09.2]} 45. Rd6 {[%clk 0:00:04.3]} 45...
Kc2 {[%clk 0:00:08.7]} 46. Rc6+ {[%clk 0:00:04.5]} 46... Kd1 {[%clk 0:00:09]}
47. Rd6 {[%clk 0:00:05]} 47... d2 {[%clk 0:00:09.5]} 48. Rc6 {[%clk 0:00:04]}
48... Rc2 {[%clk 0:00:07.9]} 49. b7 {[%clk 0:00:01.6]} 49... Rb2 {[%clk
0:00:07.3]} 50. Rc7 {[%clk 0:00:02.1]} 50... h5 {[%clk 0:00:07.1]} 51. g4 {[%clk
0:00:02.3]} 51... h4 {[%clk 0:00:07.1]} 52. Kf2 {[%clk 0:00:02.5]} 52... Rb6
{[%clk 0:00:05.9]} 53. Kg2 {[%clk 0:00:01.3]} 53... g5 {[%clk 0:00:05.8]} 0-1